[Event "Titled Tuesday Blitz October 26 2021"]
[White "Sviridov, Valery"]
[Black "Nakamura, Hikaru"]
[WhiteFideId "4120680"]
[BlackFideId "2016192"]
[WhiteElo "2454"]
[BlackElo "2884"]
[Result "1/2-1/2"]
[Round "08"]
[TimeControl "180+1"]
[Date "2021.10.26"]
[WhiteClock "0:00:25"]
[BlackClock "0:00:16"]

1. d4 {[%clk 0:03:00]}  f5 {[%clk 0:02:58]} 2. g3 {[%clk 0:02:59]}  Nf6 {[%clk 0:02:58]} 3. Bg2 {[%clk 0:02:59]}  g6 {[%clk 0:02:59]} 4. Nf3 {[%clk 0:02:59]}  Bg7 {[%clk 0:02:59]} 5. O-O {[%clk 0:02:59]}  O-O {[%clk 0:02:58]} 6. c4 {[%clk 0:02:59]}  d6 {[%clk 0:02:58]} 7. Nc3 {[%clk 0:02:59]}  c6 {[%clk 0:02:58]} 8. b3 {[%clk 0:02:58]}  Qa5 {[%clk 0:02:55]} 9. Bb2 {[%clk 0:02:54]}  e5 {[%clk 0:02:55]} 10. dxe5 {[%clk 0:02:54]}  dxe5 {[%clk 0:02:56]} 11. e4 {[%clk 0:02:53]}  f4 {[%clk 0:02:33]} 12. Qd6 {[%clk 0:02:37]}  Ne8 {[%clk 0:02:22]} 13. Qd2 {[%clk 0:02:36]}  Qc7 {[%clk 0:02:10]} 14. Rad1 {[%clk 0:02:30]}  Be6 {[%clk 0:01:29]} 15. Qd8 {[%clk 0:02:27]}  Qxd8 {[%clk 0:01:23]} 16. Rxd8 {[%clk 0:02:27]}  Bf6 {[%clk 0:01:24]} 17. Rd2 {[%clk 0:02:22]}  Nd7 {[%clk 0:01:23]} 18. Rfd1 {[%clk 0:02:19]}  Rf7 {[%clk 0:01:23]} 19. Na4 {[%clk 0:01:59]}  g5 {[%clk 0:01:19]} 20. Ne1 {[%clk 0:01:56]}  Bg7 {[%clk 0:01:08]} 21. Nd3 {[%clk 0:01:52]}  f3 {[%clk 0:01:06]} 22. Bf1 {[%clk 0:01:52]}  b6 {[%clk 0:00:57]} 23. Nb4 {[%clk 0:01:38]}  Rc8 {[%clk 0:00:57]} 24. h3 {[%clk 0:01:39]}  h5 {[%clk 0:00:57]} 25. Re1 {[%clk 0:01:28]}  g4 {[%clk 0:00:56]} 26. h4 {[%clk 0:01:26]}  Re7 {[%clk 0:00:50]} 27. Red1 {[%clk 0:01:25]}  Bh6 {[%clk 0:00:46]} 28. Rc2 {[%clk 0:01:23]}  Bf7 {[%clk 0:00:42]} 29. Bc1 {[%clk 0:01:22]}  Bxc1 {[%clk 0:00:42]} 30. Rcxc1 {[%clk 0:01:23]}  Nef6 {[%clk 0:00:42]} 31. Nc3 {[%clk 0:01:20]}  Nc5 {[%clk 0:00:41]} 32. Re1 {[%clk 0:01:20]}  Rd7 {[%clk 0:00:40]} 33. Re3 {[%clk 0:01:19]}  a5 {[%clk 0:00:31]} 34. Nd3 {[%clk 0:01:18]}  Nxd3 {[%clk 0:00:31]} 35. Rxd3 {[%clk 0:01:18]}  Rd4 {[%clk 0:00:29]} 36. Rxd4 {[%clk 0:01:13]}  exd4 {[%clk 0:00:30]} 37. Na4 {[%clk 0:01:12]}  Nxe4 {[%clk 0:00:27]} 38. Nxb6 {[%clk 0:01:10]}  Rd8 {[%clk 0:00:28]} 39. Bd3 {[%clk 0:01:04]}  Nc5 {[%clk 0:00:28]} 40. Rd1 {[%clk 0:01:04]}  Nxd3 {[%clk 0:00:27]} 41. Rxd3 {[%clk 0:01:05]}  Bg6 {[%clk 0:00:27]} 42. Rd2 {[%clk 0:01:03]}  d3 {[%clk 0:00:24]} 43. Na4 {[%clk 0:01:03]}  Kf7 {[%clk 0:00:24]} 44. Kf1 {[%clk 0:01:02]}  Kf6 {[%clk 0:00:25]} 45. Ke1 {[%clk 0:00:58]}  Ke5 {[%clk 0:00:22]} 46. Nc5 {[%clk 0:00:42]}  Re8 {[%clk 0:00:19]} 47. Kd1 {[%clk 0:00:29]}  Kd4 {[%clk 0:00:19]} 48. Na4 {[%clk 0:00:30]}  Bf5 {[%clk 0:00:18]} 49. Rb2 {[%clk 0:00:25]}  c5 {[%clk 0:00:16]} 50. Rd2 {[%clk 0:00:25]}  Re6 {[%clk 0:00:15]} 51. Rb2 {[%clk 0:00:25]}  Bg6 {[%clk 0:00:15]} 52. Rd2 {[%clk 0:00:25]}  Bf5 {[%clk 0:00:14]} 53. Rb2 {[%clk 0:00:25]}  Re7 {[%clk 0:00:14]} 54. Rd2 {[%clk 0:00:25]}  Rf7 {[%clk 0:00:15]} 55. Rb2 {[%clk 0:00:25]}  Rf6 {[%clk 0:00:15]} 56. Rd2 {[%clk 0:00:25]}  Re6 {[%clk 0:00:16]} 1/2-1/2


[Site "https://www.chess.com"]

[Event "Titled Tuesday Blitz October 26 2021"]
[White "Tanenbaum, Zachary"]
[Black "Koutlas, Nikolaos"]
[WhiteFideId "2060850"]
[BlackFideId "25827138"]
[WhiteElo "2165"]
[BlackElo "1525"]
[Result "1-0"]
[Round "08"]
[TimeControl "180+1"]
[Date "2021.10.26"]
[WhiteClock "0:00:29"]
[BlackClock "0:00:31"]

1. e4 {[%clk 0:03:00]}  c5 {[%clk 0:02:59]} 2. Nf3 {[%clk 0:03:00]}  Nc6 {[%clk 0:02:59]} 3. Nc3 {[%clk 0:03:00]}  g6 {[%clk 0:02:59]} 4. d4 {[%clk 0:03:00]}  cxd4 {[%clk 0:02:59]} 5. Nxd4 {[%clk 0:03:01]}  Bg7 {[%clk 0:02:59]} 6. Be3 {[%clk 0:03:01]}  Nf6 {[%clk 0:02:58]} 7. Bc4 {[%clk 0:03:00]}  O-O {[%clk 0:02:57]} 8. Bb3 {[%clk 0:03:01]}  d6 {[%clk 0:02:48]} 9. h3 {[%clk 0:03:00]}  Na5 {[%clk 0:02:35]} 10. O-O {[%clk 0:02:59]}  Nxb3 {[%clk 0:02:35]} 11. axb3 {[%clk 0:03:00]}  b6 {[%clk 0:02:28]} 12. f4 {[%clk 0:02:47]}  Bb7 {[%clk 0:02:26]} 13. Qd3 {[%clk 0:02:47]}  a6 {[%clk 0:02:21]} 14. f5 {[%clk 0:02:45]}  Rc8 {[%clk 0:02:19]} 15. Rf2 {[%clk 0:02:31]}  b5 {[%clk 0:02:02]} 16. Raf1 {[%clk 0:02:30]}  b4 {[%clk 0:02:00]} 17. Nd5 {[%clk 0:02:30]}  Nxd5 {[%clk 0:01:55]} 18. exd5 {[%clk 0:02:31]}  Bxd5 {[%clk 0:01:55]} 19. fxg6 {[%clk 0:02:30]}  hxg6 {[%clk 0:01:53]} 20. Nf5 {[%clk 0:01:54]}  gxf5 {[%clk 0:01:36]} 21. Qxd5 {[%clk 0:01:54]}  e6 {[%clk 0:01:36]} 22. Qf3 {[%clk 0:01:53]}  d5 {[%clk 0:01:20]} 23. Qg3 {[%clk 0:01:49]}  Qf6 {[%clk 0:01:17]} 24. Bf4 {[%clk 0:01:17]}  Qg6 {[%clk 0:01:14]} 25. Qe3 {[%clk 0:01:12]}  e5 {[%clk 0:00:47]} 26. Bxe5 {[%clk 0:00:56]}  Rce8 {[%clk 0:00:46]} 27. Rxf5 {[%clk 0:00:55]}  f6 {[%clk 0:00:47]} 28. Qg3 {[%clk 0:00:55]}  Qxg3 {[%clk 0:00:42]} 29. Bxg3 {[%clk 0:00:56]}  Re2 {[%clk 0:00:42]} 30. R1f2 {[%clk 0:00:52]}  Rxf2 {[%clk 0:00:40]} 31. Rxf2 {[%clk 0:00:38]}  Rc8 {[%clk 0:00:39]} 32. Rd2 {[%clk 0:00:34]}  f5 {[%clk 0:00:36]} 33. Rxd5 {[%clk 0:00:29]}  Rxc2 {[%clk 0:00:35]} 34. Rxf5 {[%clk 0:00:29]}  Rxb2 {[%clk 0:00:34]} 35. Rg5 {[%clk 0:00:29]}  Kf7 {[%clk 0:00:31]} 36. Rxg7+ {[%clk 0:00:29]} 1-0


[Site "https://www.chess.com"]

[Event "Titled Tuesday Blitz October 26 2021"]
[White "Timofeev, Artyom"]
[Black "Begmuratov, Khumoyun"]
[WhiteFideId "4140419"]
[BlackFideId "14210207"]
[WhiteElo "2591"]
[BlackElo "1948"]
[Result "1-0"]
[Round "08"]
[TimeControl "180+1"]
[Date "2021.10.26"]
[WhiteClock "0:01:02"]
[BlackClock "0:00:13"]

1. c4 {[%clk 0:03:00]}  Nf6 {[%clk 0:02:59]} 2. Nc3 {[%clk 0:03:00]}  g6 {[%clk 0:02:59]} 3. g3 {[%clk 0:03:00]}  Bg7 {[%clk 0:02:59]} 4. Bg2 {[%clk 0:03:00]}  O-O {[%clk 0:03:00]} 5. d3 {[%clk 0:03:00]}  d6 {[%clk 0:02:58]} 6. Nf3 {[%clk 0:03:00]}  e5 {[%clk 0:02:58]} 7. O-O {[%clk 0:03:00]}  Re8 {[%clk 0:02:55]} 8. Bg5 {[%clk 0:03:00]}  h6 {[%clk 0:02:54]} 9. Bxf6 {[%clk 0:03:00]}  Qxf6 {[%clk 0:02:54]} 10. Nd2 {[%clk 0:02:57]}  c6 {[%clk 0:02:53]} 11. Rc1 {[%clk 0:02:46]}  Be6 {[%clk 0:02:52]} 12. b4 {[%clk 0:02:46]}  Qd8 {[%clk 0:02:37]} 13. b5 {[%clk 0:02:43]}  Qc7 {[%clk 0:02:25]} 14. bxc6 {[%clk 0:02:37]}  bxc6 {[%clk 0:02:26]} 15. Qa4 {[%clk 0:02:37]}  Rc8 {[%clk 0:02:24]} 16. Nb3 {[%clk 0:02:23]}  Nd7 {[%clk 0:02:23]} 17. Na5 {[%clk 0:02:19]}  Nc5 {[%clk 0:02:16]} 18. Qa3 {[%clk 0:02:19]}  Bd7 {[%clk 0:02:15]} 19. Rb1 {[%clk 0:02:01]}  Rab8 {[%clk 0:02:07]} 20. h4 {[%clk 0:02:00]}  Rb6 {[%clk 0:02:00]} 21. Nb3 {[%clk 0:01:53]}  Ra6 {[%clk 0:01:43]} 22. Qc1 {[%clk 0:01:50]}  Ne6 {[%clk 0:01:42]} 23. e3 {[%clk 0:01:46]}  Rb8 {[%clk 0:01:36]} 24. h5 {[%clk 0:01:31]}  Rab6 {[%clk 0:01:25]} 25. hxg6 {[%clk 0:01:30]}  fxg6 {[%clk 0:01:25]} 26. Qc2 {[%clk 0:01:30]}  Be8 {[%clk 0:01:11]} 27. Nd2 {[%clk 0:01:28]}  Qe7 {[%clk 0:01:02]} 28. Rxb6 {[%clk 0:01:27]}  Rxb6 {[%clk 0:01:00]} 29. Nde4 {[%clk 0:01:25]}  h5 {[%clk 0:00:55]} 30. Rb1 {[%clk 0:01:24]}  g5 {[%clk 0:00:44]} 31. Rxb6 {[%clk 0:01:22]}  axb6 {[%clk 0:00:44]} 32. Qb3 {[%clk 0:01:22]}  Nc5 {[%clk 0:00:32]} 33. Nxc5 {[%clk 0:01:19]}  bxc5 {[%clk 0:00:33]} 34. a4 {[%clk 0:01:19]}  h4 {[%clk 0:00:33]} 35. a5 {[%clk 0:01:17]}  hxg3 {[%clk 0:00:32]} 36. fxg3 {[%clk 0:01:17]}  g4 {[%clk 0:00:30]} 37. Qb8 {[%clk 0:01:13]}  Bh6 {[%clk 0:00:22]} 38. Bxc6 {[%clk 0:01:05]}  Qg5 {[%clk 0:00:16]} 39. Qxe8+ {[%clk 0:01:04]}  Kg7 {[%clk 0:00:16]} 40. Nd5 {[%clk 0:01:02]}  Qf5 {[%clk 0:00:13]} 41. Qd7+ {[%clk 0:01:02]} 1-0


[Site "https://www.chess.com"]

[Event "Titled Tuesday Blitz October 26 2021"]
[White "Wagh Suyog"]
[Black "Golubev, Mikhail"]
[WhiteFideId "25071688"]
[BlackFideId "14100983"]
[WhiteElo "2219"]
[BlackElo "2374"]
[Result "0-1"]
[Round "08"]
[TimeControl "180+1"]
[Date "2021.10.26"]
[WhiteClock "0:00:57"]
[BlackClock "0:01:30"]

1. e4 {[%clk 0:03:00]}  c5 {[%clk 0:02:58]} 2. Nf3 {[%clk 0:03:00]}  d6 {[%clk 0:02:58]} 3. d4 {[%clk 0:03:00]}  Nf6 {[%clk 0:02:58]} 4. Nc3 {[%clk 0:03:00]}  cxd4 {[%clk 0:02:58]} 5. Nxd4 {[%clk 0:03:01]}  g6 {[%clk 0:02:57]} 6. Bc4 {[%clk 0:02:59]}  Bg7 {[%clk 0:02:56]} 7. f3 {[%clk 0:02:59]}  O-O {[%clk 0:02:55]} 8. Be3 {[%clk 0:03:00]}  Nc6 {[%clk 0:02:55]} 9. Qd2 {[%clk 0:03:00]}  Bd7 {[%clk 0:02:55]} 10. O-O-O {[%clk 0:03:00]}  Ne5 {[%clk 0:02:51]} 11. Bb3 {[%clk 0:03:00]}  Rc8 {[%clk 0:02:51]} 12. h4 {[%clk 0:03:00]}  h5 {[%clk 0:02:51]} 13. g4 {[%clk 0:02:59]}  hxg4 {[%clk 0:02:49]} 14. h5 {[%clk 0:03:00]}  Nxh5 {[%clk 0:02:49]} 15. Bh6 {[%clk 0:02:56]}  e6 {[%clk 0:02:49]} 16. Bxg7 {[%clk 0:02:53]}  Kxg7 {[%clk 0:02:49]} 17. fxg4 {[%clk 0:02:52]}  Nxg4 {[%clk 0:02:45]} 18. Rdg1 {[%clk 0:02:51]}  Nhf6 {[%clk 0:02:42]} 19. Qg5 {[%clk 0:02:32]}  Rc5 {[%clk 0:02:35]} 20. Qd2 {[%clk 0:01:53]}  Rh8 {[%clk 0:02:35]} 21. Nf3 {[%clk 0:01:45]}  Rxh1 {[%clk 0:02:25]} 22. Rxh1 {[%clk 0:01:45]}  Bc6 {[%clk 0:02:17]} 23. Qd4 {[%clk 0:01:15]}  e5 {[%clk 0:02:03]} 24. Qg1 {[%clk 0:01:06]}  Rxc3 {[%clk 0:02:00]} 25. bxc3 {[%clk 0:01:02]}  Bxe4 {[%clk 0:02:00]} 26. Qg3 {[%clk 0:01:01]}  Qc8 {[%clk 0:01:48]} 27. Kb2 {[%clk 0:01:01]}  Qc6 {[%clk 0:01:38]} 28. Rf1 {[%clk 0:00:57]}  Ne3 {[%clk 0:01:30]} 29. Rf2 {[%clk 0:00:57]}  Nd1+ {[%clk 0:01:30]} 0-1


[Site "https://www.chess.com"]

[Event "Titled Tuesday Blitz October 26 2021"]
[White "Yeletsky, Ivan"]
[Black "Sapunov, Evgeny"]
[WhiteFideId "24180327"]
[BlackFideId "4126661"]
[WhiteElo "2352"]
[BlackElo "2470"]
[Result "0-1"]
[Round "08"]
[TimeControl "180+1"]
[Date "2021.10.26"]
[WhiteClock "0:00:01"]
[BlackClock "0:00:38"]

1. c4 {[%clk 0:03:00]}  Nf6 {[%clk 0:02:59]} 2. Nc3 {[%clk 0:03:00]}  g6 {[%clk 0:02:59]} 3. e4 {[%clk 0:02:59]}  d6 {[%clk 0:03:00]} 4. d4 {[%clk 0:02:59]}  Bg7 {[%clk 0:02:59]} 5. Nf3 {[%clk 0:02:58]}  O-O {[%clk 0:02:56]} 6. Bg5 {[%clk 0:02:58]}  h6 {[%clk 0:02:54]} 7. Bh4 {[%clk 0:02:58]}  g5 {[%clk 0:02:54]} 8. Bg3 {[%clk 0:02:59]}  Nh5 {[%clk 0:02:54]} 9. Be2 {[%clk 0:02:52]}  c5 {[%clk 0:02:44]} 10. d5 {[%clk 0:02:51]}  Nxg3 {[%clk 0:02:45]} 11. hxg3 {[%clk 0:02:51]}  e6 {[%clk 0:02:45]} 12. Nd2 {[%clk 0:02:42]}  a6 {[%clk 0:02:43]} 13. a4 {[%clk 0:02:41]}  Nd7 {[%clk 0:02:42]} 14. O-O {[%clk 0:02:37]}  Rb8 {[%clk 0:02:39]} 15. Qc2 {[%clk 0:02:21]}  Re8 {[%clk 0:02:38]} 16. Ra3 {[%clk 0:02:13]}  Nf6 {[%clk 0:02:27]} 17. Nd1 {[%clk 0:02:02]}  exd5 {[%clk 0:02:20]} 18. cxd5 {[%clk 0:02:03]}  b5 {[%clk 0:02:20]} 19. axb5 {[%clk 0:02:01]}  axb5 {[%clk 0:02:20]} 20. Ne3 {[%clk 0:01:54]}  c4 {[%clk 0:02:13]} 21. b3 {[%clk 0:01:26]}  c3 {[%clk 0:02:05]} 22. e5 {[%clk 0:01:23]}  Rxe5 {[%clk 0:01:57]} 23. Nf3 {[%clk 0:01:21]}  Re8 {[%clk 0:01:44]} 24. b4 {[%clk 0:01:20]}  Ne4 {[%clk 0:01:30]} 25. g4 {[%clk 0:01:10]}  Qb6 {[%clk 0:01:23]} 26. Nf5 {[%clk 0:00:32]}  Bxf5 {[%clk 0:01:20]} 27. gxf5 {[%clk 0:00:33]}  g4 {[%clk 0:01:09]} 28. Bd3 {[%clk 0:00:33]}  gxf3 {[%clk 0:01:01]} 29. Bxe4 {[%clk 0:00:32]}  fxg2 {[%clk 0:01:02]} 30. Kxg2 {[%clk 0:00:32]}  Qd4 {[%clk 0:01:01]} 31. f3 {[%clk 0:00:32]}  Qxb4 {[%clk 0:01:01]} 32. Rb3 {[%clk 0:00:27]}  Qd4 {[%clk 0:01:00]} 33. Rd1 {[%clk 0:00:17]}  Qc5 {[%clk 0:00:58]} 34. Kh3 {[%clk 0:00:15]}  Bf6 {[%clk 0:00:57]} 35. Rg1+ {[%clk 0:00:11]}  Qxg1 {[%clk 0:00:56]} 36. Rb1 {[%clk 0:00:09]}  Qe3 {[%clk 0:00:54]} 37. Qh2 {[%clk 0:00:04]}  Kh7 {[%clk 0:00:49]} 38. Rg1 {[%clk 0:00:03]}  Rg8 {[%clk 0:00:44]} 39. Rxg8 {[%clk 0:00:01]}  Rxg8 {[%clk 0:00:42]} 40. Qxd6 {[%clk 0:00:01]}  Qg1 {[%clk 0:00:38]} 0-1


[Site "https://www.chess.com"]

[Event "Titled Tuesday Blitz October 26 2021"]
[White "Costachi, Mihnea"]
[Black "Le Goff, Ronan"]
[WhiteFideId "1217518"]
[BlackFideId "612073"]
[WhiteElo "2482"]
[BlackElo "2276"]
[Result "1-0"]
[Round "09"]
[TimeControl "180+1"]
[Date "2021.10.26"]
[WhiteClock "0:00:57"]
[BlackClock "0:00:07"]

1. d4 {[%clk 0:03:00]}  Nf6 {[%clk 0:02:59]} 2. Bg5 {[%clk 0:02:59]}  d5 {[%clk 0:02:59]} 3. e3 {[%clk 0:02:59]}  e6 {[%clk 0:02:59]} 4. Nf3 {[%clk 0:02:57]}  h6 {[%clk 0:02:58]} 5. Bh4 {[%clk 0:02:57]}  Be7 {[%clk 0:02:56]} 6. Be2 {[%clk 0:02:58]}  O-O {[%clk 0:02:56]} 7. O-O {[%clk 0:02:58]}  b6 {[%clk 0:02:56]} 8. c4 {[%clk 0:02:59]}  Bb7 {[%clk 0:02:54]} 9. cxd5 {[%clk 0:02:58]}  Nxd5 {[%clk 0:02:54]} 10. Bg3 {[%clk 0:02:55]}  Nf6 {[%clk 0:02:46]} 11. Nc3 {[%clk 0:02:54]}  Nbd7 {[%clk 0:02:45]} 12. Rc1 {[%clk 0:02:53]}  c5 {[%clk 0:02:44]} 13. Qc2 {[%clk 0:02:48]}  Rc8 {[%clk 0:02:43]} 14. Rfd1 {[%clk 0:02:47]}  cxd4 {[%clk 0:02:41]} 15. Nxd4 {[%clk 0:02:48]}  Ne4 {[%clk 0:02:23]} 16. Bb5 {[%clk 0:02:29]}  Nxc3 {[%clk 0:01:52]} 17. bxc3 {[%clk 0:02:30]}  Ba3 {[%clk 0:01:52]} 18. Nxe6 {[%clk 0:02:21]}  fxe6 {[%clk 0:01:45]} 19. Rxd7 {[%clk 0:02:21]}  Qg5 {[%clk 0:01:40]} 20. Rcd1 {[%clk 0:02:08]}  Bd5 {[%clk 0:01:05]} 21. Qa4 {[%clk 0:02:01]}  Rxc3 {[%clk 0:00:55]} 22. e4 {[%clk 0:01:48]}  Bxa2 {[%clk 0:00:38]} 23. Qxa7 {[%clk 0:01:42]}  Bc5 {[%clk 0:00:18]} 24. Qxa2 {[%clk 0:01:38]}  Rxg3 {[%clk 0:00:18]} 25. hxg3 {[%clk 0:01:34]}  Bxf2+ {[%clk 0:00:14]} 26. Qxf2 {[%clk 0:01:28]}  Rxf2 {[%clk 0:00:15]} 27. Kxf2 {[%clk 0:01:27]}  Qxb5 {[%clk 0:00:14]} 28. Rc7 {[%clk 0:01:15]}  Qb2+ {[%clk 0:00:11]} 29. Kg1 {[%clk 0:01:11]}  Qe2 {[%clk 0:00:10]} 30. Rdd7 {[%clk 0:01:06]}  Qxe4 {[%clk 0:00:09]} 31. Rxg7+ {[%clk 0:01:05]}  Kh8 {[%clk 0:00:09]} 32. Rgd7 {[%clk 0:00:58]}  Qe3+ {[%clk 0:00:02]} 33. Kh2 {[%clk 0:00:57]}  Qg5 {[%clk 0:00:03]} 34. Rc8+ {[%clk 0:00:57]}  Qg8 {[%clk 0:00:03]} 35. Rxg8+ {[%clk 0:00:56]}  Kxg8 {[%clk 0:00:04]} 36. Rd6 {[%clk 0:00:57]}  e5 {[%clk 0:00:04]} 37. Rxh6 {[%clk 0:00:56]}  e4 {[%clk 0:00:05]} 38. Rxb6 {[%clk 0:00:57]}  e3 {[%clk 0:00:06]} 39. Re6 {[%clk 0:00:57]}  e2 {[%clk 0:00:07]} 1-0


[Site "https://www.chess.com"]

[Event "Titled Tuesday Blitz October 26 2021"]
[White "Cunjalo, Faris"]
[Black "Weetik, Vjacheslav"]
[WhiteFideId "14410710"]
[BlackFideId "4153472"]
[WhiteElo "2234"]
[BlackElo "2469"]
[Result "0-1"]
[Round "09"]
[TimeControl "180+1"]
[Date "2021.10.26"]
[WhiteClock "0:00:48"]
[BlackClock "0:00:38"]

1. d4 {[%clk 0:03:00]}  g6 {[%clk 0:02:59]} 2. e4 {[%clk 0:03:00]}  Bg7 {[%clk 0:02:59]} 3. Nc3 {[%clk 0:03:00]}  d6 {[%clk 0:02:59]} 4. Nf3 {[%clk 0:03:00]}  a6 {[%clk 0:02:59]} 5. Be2 {[%clk 0:02:58]}  b5 {[%clk 0:02:57]} 6. a4 {[%clk 0:02:56]}  b4 {[%clk 0:02:54]} 7. Nd5 {[%clk 0:02:57]}  a5 {[%clk 0:02:53]} 8. O-O {[%clk 0:02:39]}  Bb7 {[%clk 0:02:47]} 9. h4 {[%clk 0:02:30]}  h6 {[%clk 0:02:27]} 10. Re1 {[%clk 0:02:22]}  Nd7 {[%clk 0:02:18]} 11. c3 {[%clk 0:02:13]}  e6 {[%clk 0:01:45]} 12. Nf4 {[%clk 0:02:11]}  Ngf6 {[%clk 0:01:37]} 13. Bd3 {[%clk 0:01:43]}  O-O {[%clk 0:01:31]} 14. Bd2 {[%clk 0:01:41]}  c5 {[%clk 0:01:30]} 15. e5 {[%clk 0:01:33]}  dxe5 {[%clk 0:01:26]} 16. dxe5 {[%clk 0:01:34]}  Ng4 {[%clk 0:01:26]} 17. Bxg6 {[%clk 0:01:15]}  fxg6 {[%clk 0:01:23]} 18. Nxe6 {[%clk 0:01:14]}  Bxf3 {[%clk 0:01:01]} 19. Nxd8 {[%clk 0:01:06]}  Bxd1 {[%clk 0:01:00]} 20. Ne6 {[%clk 0:00:59]}  Bb3 {[%clk 0:00:53]} 21. Nxf8 {[%clk 0:00:59]}  Nxf8 {[%clk 0:00:46]} 22. Bf4 {[%clk 0:00:54]}  Ne6 {[%clk 0:00:43]} 23. Bg3 {[%clk 0:00:55]}  h5 {[%clk 0:00:42]} 24. f3 {[%clk 0:00:47]}  Nh6 {[%clk 0:00:42]} 25. cxb4 {[%clk 0:00:48]}  axb4 {[%clk 0:00:38]} 26. a5 {[%clk 0:00:48]}  Nf5 {[%clk 0:00:38]} 27. Bf2 {[%clk 0:00:48]}  Nfd4 {[%clk 0:00:38]} 0-1


[Site "https://www.chess.com"]

[Event "Titled Tuesday Blitz October 26 2021"]
[White "Djordjevic, Vuk"]
[Black "Jones, Gawain C B"]
[WhiteFideId "902098"]
[BlackFideId "409561"]
[WhiteElo "2463"]
[BlackElo "2657"]
[Result "0-1"]
[Round "09"]
[TimeControl "180+1"]
[Date "2021.10.26"]
[WhiteClock "0:00:03"]
[BlackClock "0:00:04"]

1. d4 {[%clk 0:03:00]}  Nf6 {[%clk 0:02:59]} 2. Bg5 {[%clk 0:03:01]}  g6 {[%clk 0:02:56]} 3. Bxf6 {[%clk 0:03:01]}  exf6 {[%clk 0:02:57]} 4. c4 {[%clk 0:03:01]}  Bg7 {[%clk 0:02:57]} 5. Nc3 {[%clk 0:03:02]}  f5 {[%clk 0:02:56]} 6. e3 {[%clk 0:03:02]}  c5 {[%clk 0:02:56]} 7. dxc5 {[%clk 0:02:45]}  Bxc3+ {[%clk 0:02:55]} 8. bxc3 {[%clk 0:02:45]}  Qa5 {[%clk 0:02:53]} 9. Qd4 {[%clk 0:02:40]}  O-O {[%clk 0:02:53]} 10. Nf3 {[%clk 0:02:34]}  Nc6 {[%clk 0:02:50]} 11. Qf6 {[%clk 0:02:33]}  Qxc5 {[%clk 0:02:36]} 12. h4 {[%clk 0:02:18]}  Re8 {[%clk 0:02:25]} 13. Be2 {[%clk 0:01:30]}  b6 {[%clk 0:02:00]} 14. h5 {[%clk 0:01:16]}  Qe7 {[%clk 0:01:57]} 15. Qh4 {[%clk 0:00:47]}  Qxh4 {[%clk 0:01:53]} 16. Rxh4 {[%clk 0:00:48]}  Ba6 {[%clk 0:01:49]} 17. Rd1 {[%clk 0:00:46]}  Re7 {[%clk 0:01:46]} 18. c5 {[%clk 0:00:16]}  Bxe2 {[%clk 0:01:43]} 19. Kxe2 {[%clk 0:00:16]}  b5 {[%clk 0:01:16]} 20. a4 {[%clk 0:00:13]}  Rb8 {[%clk 0:01:09]} 21. Rb1 {[%clk 0:00:12]}  bxa4 {[%clk 0:00:46]} 22. Rxb8+ {[%clk 0:00:11]}  Nxb8 {[%clk 0:00:47]} 23. Rxa4 {[%clk 0:00:11]}  Nc6 {[%clk 0:00:48]} 24. Nd4 {[%clk 0:00:11]}  Kg7 {[%clk 0:00:40]} 25. Ra6 {[%clk 0:00:06]}  Re5 {[%clk 0:00:30]} 26. Nxc6 {[%clk 0:00:02]}  dxc6 {[%clk 0:00:31]} 27. hxg6 {[%clk 0:00:03]}  Rxc5 {[%clk 0:00:19]} 28. gxh7 {[%clk 0:00:02]}  Kxh7 {[%clk 0:00:16]} 29. Rxa7 {[%clk 0:00:03]}  Rxc3 {[%clk 0:00:16]} 30. Rxf7+ {[%clk 0:00:02]}  Kg6 {[%clk 0:00:17]} 31. Rc7 {[%clk 0:00:03]}  Rc2+ {[%clk 0:00:15]} 32. Kf3 {[%clk 0:00:03]}  Kf6 {[%clk 0:00:15]} 33. Rc8 {[%clk 0:00:03]}  Ke6 {[%clk 0:00:15]} 34. g3 {[%clk 0:00:04]}  c5 {[%clk 0:00:14]} 35. Re8+ {[%clk 0:00:04]}  Kd5 {[%clk 0:00:14]} 36. Rf8 {[%clk 0:00:04]}  Ke5 {[%clk 0:00:14]} 37. Re8+ {[%clk 0:00:05]}  Kd6 {[%clk 0:00:15]} 38. Rd8+ {[%clk 0:00:05]}  Ke7 {[%clk 0:00:14]} 39. Rc8 {[%clk 0:00:06]}  c4 {[%clk 0:00:12]} 40. Rc5 {[%clk 0:00:05]}  Ke6 {[%clk 0:00:13]} 41. Rc6+ {[%clk 0:00:04]}  Kd5 {[%clk 0:00:13]} 42. Rc8 {[%clk 0:00:05]}  c3 {[%clk 0:00:12]} 43. Rc7 {[%clk 0:00:02]}  Kd6 {[%clk 0:00:10]} 44. Rc4 {[%clk 0:00:02]}  Ke5 {[%clk 0:00:07]} 45. Rc8 {[%clk 0:00:02]}  Kd5 {[%clk 0:00:07]} 46. Kg2 {[%clk 0:00:02]}  Rc1 {[%clk 0:00:07]} 47. Kf3 {[%clk 0:00:01]}  Ke5 {[%clk 0:00:07]} 48. Ke2 {[%clk 0:00:02]}  Ke4 {[%clk 0:00:05]} 49. Rc4+ {[%clk 0:00:01]}  Kd5 {[%clk 0:00:04]} 50. Kd3 {[%clk 0:00:02]}  Rd1+ {[%clk 0:00:04]} 51. Ke2 {[%clk 0:00:03]}  Rd2+ {[%clk 0:00:04]} 0-1


[Site "https://www.chess.com"]